[Event "Titled Tuesday Blitz May 24 Early 2022"]
[White "Guzman, Christopher"]
[Black "Mestnikov, Aisen"]
[WhiteFideId "6405096"]
[BlackFideId "34130117"]
[WhiteElo "2244"]
[BlackElo "2027"]
[Result "0-1"]
[Round "08"]
[TimeControl "180+1"]
[Date "2022.05.25"]
[WhiteClock "0:01:47"]
[BlackClock "0:00:04"]

1. e4 {[%clk 0:03:00]}  e5 {[%clk 0:02:58]} 2. Nf3 {[%clk 0:02:53]}  Nc6 {[%clk 0:02:58]} 3. Bb5 {[%clk 0:02:52]}  a6 {[%clk 0:02:58]} 4. Ba4 {[%clk 0:02:51]}  Nge7 {[%clk 0:02:58]} 5. O-O {[%clk 0:02:50]}  g6 {[%clk 0:02:58]} 6. d4 {[%clk 0:02:49]}  exd4 {[%clk 0:02:58]} 7. Bxc6 {[%clk 0:02:48]}  Nxc6 {[%clk 0:02:52]} 8. Nxd4 {[%clk 0:02:48]}  Bg7 {[%clk 0:02:52]} 9. Be3 {[%clk 0:02:48]}  O-O {[%clk 0:02:52]} 10. c4 {[%clk 0:02:47]}  d6 {[%clk 0:02:40]} 11. Nc3 {[%clk 0:02:45]}  Be6 {[%clk 0:02:39]} 12. b3 {[%clk 0:02:44]}  Qd7 {[%clk 0:02:34]} 13. Rc1 {[%clk 0:02:43]}  f5 {[%clk 0:02:28]} 14. exf5 {[%clk 0:02:42]}  Bxf5 {[%clk 0:02:28]} 15. Nd5 {[%clk 0:02:41]}  Ne5 {[%clk 0:01:37]} 16. Re1 {[%clk 0:02:32]}  Rae8 {[%clk 0:01:09]} 17. Bg5 {[%clk 0:02:26]}  Nd3 {[%clk 0:01:00]} 18. Rxe8 {[%clk 0:02:23]}  Rxe8 {[%clk 0:00:57]} 19. Nxf5 {[%clk 0:02:23]}  Qxf5 {[%clk 0:00:30]} 20. Ne7+ {[%clk 0:02:17]}  Rxe7 {[%clk 0:00:29]} 21. Bxe7 {[%clk 0:02:18]}  Qxf2+ {[%clk 0:00:24]} 22. Kh1 {[%clk 0:02:18]}  Qe3 {[%clk 0:00:11]} 23. Rc2 {[%clk 0:02:03]}  Qxe7 {[%clk 0:00:10]} 24. Re2 {[%clk 0:02:00]}  Qf6 {[%clk 0:00:10]} 25. h3 {[%clk 0:01:58]}  Nf2+ {[%clk 0:00:10]} 26. Rxf2 {[%clk 0:01:58]}  Qxf2 {[%clk 0:00:10]} 27. Qd5+ {[%clk 0:01:59]}  Qf7 {[%clk 0:00:09]} 28. Qxb7 {[%clk 0:01:58]}  Qf1+ {[%clk 0:00:09]} 29. Kh2 {[%clk 0:01:58]}  Be5+ {[%clk 0:00:10]} 30. g3 {[%clk 0:01:58]}  Qf2+ {[%clk 0:00:09]} 31. Kh1 {[%clk 0:01:58]}  Qe1+ {[%clk 0:00:09]} 32. Kg2 {[%clk 0:01:57]}  Qxg3+ {[%clk 0:00:10]} 33. Kf1 {[%clk 0:01:58]}  Qxh3+ {[%clk 0:00:10]} 34. Ke2 {[%clk 0:01:58]}  Qd7 {[%clk 0:00:06]} 35. Qxa6 {[%clk 0:01:57]}  h5 {[%clk 0:00:06]} 36. a4 {[%clk 0:01:55]}  h4 {[%clk 0:00:06]} 37. a5 {[%clk 0:01:55]}  h3 {[%clk 0:00:06]} 38. Qa8+ {[%clk 0:01:55]}  Kg7 {[%clk 0:00:06]} 39. a6 {[%clk 0:01:56]}  h2 {[%clk 0:00:06]} 40. a7 {[%clk 0:01:56]}  Qg4+ {[%clk 0:00:05]} 41. Kd2 {[%clk 0:01:50]}  Qd4+ {[%clk 0:00:05]} 42. Ke2 {[%clk 0:01:50]}  Qb2+ {[%clk 0:00:05]} 43. Kf1 {[%clk 0:01:47]}  Qb1+ {[%clk 0:00:04]} 44. Ke2 {[%clk 0:01:47]}  h1=Q {[%clk 0:00:04]} 0-1


[Site "https://www.chess.com"]

[Event "Titled Tuesday Blitz May 24 Early 2022"]
[White "Haas, Michael"]
[Black "Ferreira, Vitor Hugo Vieira"]
[WhiteFideId "1629514"]
[BlackFideId "2119765"]
[WhiteElo "1982"]
[BlackElo "2165"]
[Result "1-0"]
[Round "08"]
[TimeControl "180+1"]
[Date "2022.05.25"]
[WhiteClock "0:00:10"]
[BlackClock "0:00:26"]

1. d4 {[%clk 0:03:00]}  d5 {[%clk 0:02:55]} 2. c4 {[%clk 0:03:00]}  c6 {[%clk 0:02:55]} 3. Nf3 {[%clk 0:02:59]}  Nf6 {[%clk 0:02:55]} 4. g3 {[%clk 0:02:59]}  dxc4 {[%clk 0:02:52]} 5. Bg2 {[%clk 0:02:53]}  Bf5 {[%clk 0:02:51]} 6. Nbd2 {[%clk 0:02:42]}  e6 {[%clk 0:02:35]} 7. Nxc4 {[%clk 0:02:42]}  Bb4+ {[%clk 0:02:35]} 8. Bd2 {[%clk 0:02:42]}  Bxd2+ {[%clk 0:02:35]} 9. Qxd2 {[%clk 0:02:38]}  O-O {[%clk 0:02:34]} 10. O-O {[%clk 0:02:38]}  h6 {[%clk 0:02:34]} 11. Nfe5 {[%clk 0:02:35]}  Be4 {[%clk 0:02:27]} 12. f3 {[%clk 0:02:06]}  Bh7 {[%clk 0:02:27]} 13. Rfd1 {[%clk 0:02:01]}  Nbd7 {[%clk 0:02:27]} 14. Qb4 {[%clk 0:01:58]}  Qc7 {[%clk 0:02:21]} 15. e4 {[%clk 0:01:47]}  c5 {[%clk 0:02:18]} 16. Qc3 {[%clk 0:01:23]}  b5 {[%clk 0:02:16]} 17. Nxd7 {[%clk 0:01:22]}  Nxd7 {[%clk 0:02:12]} 18. Qa5 {[%clk 0:00:54]}  Qxa5 {[%clk 0:02:04]} 19. Nxa5 {[%clk 0:00:55]}  c4 {[%clk 0:02:02]} 20. Rac1 {[%clk 0:00:53]}  Rfc8 {[%clk 0:01:58]} 21. Nb7 {[%clk 0:00:52]}  Rab8 {[%clk 0:01:54]} 22. Na5 {[%clk 0:00:37]}  Nb6 {[%clk 0:01:48]} 23. f4 {[%clk 0:00:36]}  Kf8 {[%clk 0:01:46]} 24. Kf2 {[%clk 0:00:36]}  Ke8 {[%clk 0:01:45]} 25. Ke3 {[%clk 0:00:36]}  Na4 {[%clk 0:01:41]} 26. b3 {[%clk 0:00:21]}  cxb3 {[%clk 0:01:34]} 27. axb3 {[%clk 0:00:20]}  Nc3 {[%clk 0:01:33]} 28. Re1 {[%clk 0:00:16]}  b4 {[%clk 0:01:32]} 29. Nc4 {[%clk 0:00:16]}  Rxc4 {[%clk 0:01:29]} 30. bxc4 {[%clk 0:00:15]}  a5 {[%clk 0:01:30]} 31. Ra1 {[%clk 0:00:14]}  a4 {[%clk 0:01:30]} 32. Rec1 {[%clk 0:00:15]}  a3 {[%clk 0:01:24]} 33. Rxc3 {[%clk 0:00:14]}  bxc3 {[%clk 0:01:24]} 34. Rxa3 {[%clk 0:00:14]}  Rb2 {[%clk 0:01:19]} 35. Bf3 {[%clk 0:00:11]}  Rxh2 {[%clk 0:01:14]} 36. Rxc3 {[%clk 0:00:10]}  Kd7 {[%clk 0:01:09]} 37. Ra3 {[%clk 0:00:10]}  Rh3 {[%clk 0:01:05]} 38. Ra7+ {[%clk 0:00:10]}  Ke8 {[%clk 0:01:06]} 39. Kf2 {[%clk 0:00:10]}  Rh2+ {[%clk 0:01:04]} 40. Ke3 {[%clk 0:00:07]}  Rh3 {[%clk 0:01:04]} 41. c5 {[%clk 0:00:08]}  Rxg3 {[%clk 0:01:04]} 42. c6 {[%clk 0:00:08]}  Kd8 {[%clk 0:01:02]} 43. Rxf7 {[%clk 0:00:07]}  h5 {[%clk 0:00:58]} 44. d5 {[%clk 0:00:07]}  exd5 {[%clk 0:00:57]} 45. exd5 {[%clk 0:00:08]}  Ke8 {[%clk 0:00:54]} 46. Ra7 {[%clk 0:00:07]}  h4 {[%clk 0:00:54]} 47. Ra8+ {[%clk 0:00:04]}  Ke7 {[%clk 0:00:52]} 48. c7 {[%clk 0:00:04]}  Bf5 {[%clk 0:00:53]} 49. Kf2 {[%clk 0:00:02]}  Kd6 {[%clk 0:00:48]} 50. c8=Q {[%clk 0:00:02]}  Bxc8 {[%clk 0:00:48]} 51. Rxc8 {[%clk 0:00:03]}  g5 {[%clk 0:00:45]} 52. Rc6+ {[%clk 0:00:03]}  Ke7 {[%clk 0:00:44]} 53. fxg5 {[%clk 0:00:03]}  Rxg5 {[%clk 0:00:43]} 54. Re6+ {[%clk 0:00:04]}  Kf7 {[%clk 0:00:43]} 55. Rc6 {[%clk 0:00:02]}  h3 {[%clk 0:00:43]} 56. Rc7+ {[%clk 0:00:03]}  Kf6 {[%clk 0:00:42]} 57. Rh7 {[%clk 0:00:03]}  Ke5 {[%clk 0:00:38]} 58. Rxh3 {[%clk 0:00:03]}  Kf4 {[%clk 0:00:38]} 59. Rh4+ {[%clk 0:00:03]}  Ke5 {[%clk 0:00:39]} 60. Re4+ {[%clk 0:00:03]}  Kd6 {[%clk 0:00:37]} 61. Re6+ {[%clk 0:00:03]}  Kd7 {[%clk 0:00:38]} 62. Ke3 {[%clk 0:00:03]}  Rg3 {[%clk 0:00:37]} 63. Re4 {[%clk 0:00:03]}  Rg5 {[%clk 0:00:36]} 64. Rf4 {[%clk 0:00:03]}  Re5+ {[%clk 0:00:36]} 65. Kd4 {[%clk 0:00:03]}  Re1 {[%clk 0:00:36]} 66. Be4 {[%clk 0:00:03]}  Rd1+ {[%clk 0:00:36]} 67. Ke5 {[%clk 0:00:04]}  Rg1 {[%clk 0:00:33]} 68. Rf7+ {[%clk 0:00:04]}  Ke8 {[%clk 0:00:33]} 69. Ra7 {[%clk 0:00:04]}  Rg5+ {[%clk 0:00:33]} 70. Kd6 {[%clk 0:00:05]}  Rg4 {[%clk 0:00:29]} 71. Bf5 {[%clk 0:00:05]}  Rb4 {[%clk 0:00:23]} 72. Ra8+ {[%clk 0:00:03]}  Kf7 {[%clk 0:00:23]} 73. Be6+ {[%clk 0:00:02]}  Kf6 {[%clk 0:00:23]} 74. Rf8+ {[%clk 0:00:02]}  Kg7 {[%clk 0:00:23]} 75. Rf1 {[%clk 0:00:02]}  Rb6+ {[%clk 0:00:22]} 76. Ke7 {[%clk 0:00:02]}  Rb7+ {[%clk 0:00:22]} 77. Bd7 {[%clk 0:00:02]}  Rb2 {[%clk 0:00:20]} 78. d6 {[%clk 0:00:02]}  Re2+ {[%clk 0:00:20]} 79. Be6 {[%clk 0:00:03]}  Rd2 {[%clk 0:00:18]} 80. d7 {[%clk 0:00:03]}  Kg6 {[%clk 0:00:18]} 81. d8=Q {[%clk 0:00:02]}  Rxd8 {[%clk 0:00:18]} 82. Kxd8 {[%clk 0:00:03]}  Kg5 {[%clk 0:00:18]} 83. Ke7 {[%clk 0:00:04]}  Kh4 {[%clk 0:00:19]} 84. Bc8 {[%clk 0:00:05]}  Kg3 {[%clk 0:00:20]} 85. Ke6 {[%clk 0:00:05]}  Kg2 {[%clk 0:00:20]} 86. Rf8 {[%clk 0:00:06]}  Kg3 {[%clk 0:00:20]} 87. Ke5 {[%clk 0:00:07]}  Kg2 {[%clk 0:00:21]} 88. Ke4 {[%clk 0:00:07]}  Kg3 {[%clk 0:00:22]} 89. Ke3 {[%clk 0:00:08]}  Kh4 {[%clk 0:00:22]} 90. Rg8 {[%clk 0:00:08]}  Kh5 {[%clk 0:00:22]} 91. Kf4 {[%clk 0:00:08]}  Kh6 {[%clk 0:00:23]} 92. Kf5 {[%clk 0:00:08]}  Kh7 {[%clk 0:00:24]} 93. Rg1 {[%clk 0:00:08]}  Kh6 {[%clk 0:00:24]} 94. Rg2 {[%clk 0:00:09]}  Kh7 {[%clk 0:00:25]} 95. Kf6 {[%clk 0:00:09]}  Kh8 {[%clk 0:00:26]} 96. Kf7 {[%clk 0:00:09]}  Kh7 {[%clk 0:00:26]} 97. Rh2# {[%clk 0:00:10]} 1-0


[Site "https://www.chess.com"]

[Event "Titled Tuesday Blitz May 24 Early 2022"]
[White "Hakemi, Arman"]
[Black "Oparin, Grigoriy"]
[WhiteFideId "22520805"]
[BlackFideId "24125890"]
[WhiteElo "2115"]
[BlackElo "2665"]
[Result "0-1"]
[Round "08"]
[TimeControl "180+1"]
[Date "2022.05.24"]
[WhiteClock "0:00:05"]
[BlackClock "0:00:41"]

1. d4 {[%clk 0:03:00]}  g6 {[%clk 0:02:59]} 2. Nf3 {[%clk 0:02:58]}  Bg7 {[%clk 0:03:00]} 3. g3 {[%clk 0:02:59]}  c5 {[%clk 0:03:00]} 4. dxc5 {[%clk 0:02:55]}  Na6 {[%clk 0:02:59]} 5. Bg2 {[%clk 0:02:51]}  Nxc5 {[%clk 0:02:59]} 6. O-O {[%clk 0:02:52]}  Nf6 {[%clk 0:03:00]} 7. c4 {[%clk 0:02:53]}  O-O {[%clk 0:02:59]} 8. Nc3 {[%clk 0:02:53]}  d6 {[%clk 0:02:58]} 9. Nd4 {[%clk 0:02:51]}  Bd7 {[%clk 0:02:51]} 10. b3 {[%clk 0:02:50]}  Rc8 {[%clk 0:02:50]} 11. Bb2 {[%clk 0:02:49]}  a6 {[%clk 0:02:50]} 12. Qd2 {[%clk 0:02:49]}  Qa5 {[%clk 0:02:45]} 13. Rfd1 {[%clk 0:02:48]}  Rfd8 {[%clk 0:02:45]} 14. Rac1 {[%clk 0:02:47]}  h5 {[%clk 0:02:31]} 15. h3 {[%clk 0:02:45]}  Kh7 {[%clk 0:02:27]} 16. e3 {[%clk 0:02:44]}  Qb6 {[%clk 0:02:23]} 17. Nde2 {[%clk 0:02:39]}  Bc6 {[%clk 0:02:18]} 18. Nf4 {[%clk 0:01:43]}  Bxg2 {[%clk 0:02:15]} 19. Kxg2 {[%clk 0:01:44]}  Qc6+ {[%clk 0:02:15]} 20. f3 {[%clk 0:01:42]}  e6 {[%clk 0:02:05]} 21. h4 {[%clk 0:01:22]}  b6 {[%clk 0:02:00]} 22. Qe2 {[%clk 0:01:12]}  Kg8 {[%clk 0:01:57]} 23. Kg1 {[%clk 0:01:12]}  Qb7 {[%clk 0:01:57]} 24. Rd2 {[%clk 0:01:10]}  Qa8 {[%clk 0:01:45]} 25. Rcd1 {[%clk 0:01:09]}  Qb8 {[%clk 0:01:45]} 26. Kh2 {[%clk 0:01:09]}  Rd7 {[%clk 0:01:45]} 27. Kg1 {[%clk 0:01:05]}  Rcd8 {[%clk 0:01:46]} 28. Kh2 {[%clk 0:01:03]}  Nb7 {[%clk 0:01:40]} 29. Na4 {[%clk 0:01:01]}  Na5 {[%clk 0:01:39]} 30. Qd3 {[%clk 0:00:50]}  Nc6 {[%clk 0:01:39]} 31. Nxg6 {[%clk 0:00:44]}  fxg6 {[%clk 0:01:35]} 32. Qxg6 {[%clk 0:00:44]}  Rf7 {[%clk 0:01:33]} 33. g4 {[%clk 0:00:39]}  d5+ {[%clk 0:01:30]} 34. Kh1 {[%clk 0:00:31]}  Ne5 {[%clk 0:01:30]} 35. Bxe5 {[%clk 0:00:27]}  Qxe5 {[%clk 0:01:31]} 36. g5 {[%clk 0:00:24]}  Qg3 {[%clk 0:01:15]} 37. Rg2 {[%clk 0:00:20]}  Qh3+ {[%clk 0:00:54]} 38. Kg1 {[%clk 0:00:16]}  Nd7 {[%clk 0:00:51]} 39. Qxh5 {[%clk 0:00:03]}  Ne5 {[%clk 0:00:46]} 40. f4 {[%clk 0:00:03]}  Qxe3+ {[%clk 0:00:45]} 41. Kh1 {[%clk 0:00:02]}  Rxf4 {[%clk 0:00:41]} 42. g6 {[%clk 0:00:03]}  Qh3+ {[%clk 0:00:39]} 43. Rh2 {[%clk 0:00:02]}  Qf3+ {[%clk 0:00:39]} 44. Qxf3 {[%clk 0:00:02]}  Nxf3 {[%clk 0:00:40]} 45. cxd5 {[%clk 0:00:03]}  Nxh2 {[%clk 0:00:40]} 46. Kxh2 {[%clk 0:00:04]}  Rxd5 {[%clk 0:00:40]} 47. Rxd5 {[%clk 0:00:04]}  exd5 {[%clk 0:00:41]} 48. Kg3 {[%clk 0:00:05]}  Rf6 {[%clk 0:00:40]} 49. h5 {[%clk 0:00:05]}  Bh6 {[%clk 0:00:40]} 50. Nxb6 {[%clk 0:00:05]}  Rxb6 {[%clk 0:00:41]} 51. Kg4 {[%clk 0:00:05]}  d4 {[%clk 0:00:41]} 0-1


[Site "https://www.chess.com"]

[Event "Titled Tuesday Blitz May 24 Early 2022"]
[White "Hambleton, Aman"]
[Black "Li, Zhuoling"]
[WhiteFideId "2606577"]
[BlackFideId "8605629"]
[WhiteElo "2552"]
[BlackElo "2362"]
[Result "1-0"]
[Round "08"]
[TimeControl "180+1"]
[Date "2022.05.25"]
[WhiteClock "0:00:07"]
[BlackClock "0:00:11"]

1. d4 {[%clk 0:03:00]}  Nf6 {[%clk 0:02:59]} 2. c4 {[%clk 0:03:01]}  g6 {[%clk 0:03:00]} 3. Nc3 {[%clk 0:03:01]}  d5 {[%clk 0:03:00]} 4. cxd5 {[%clk 0:03:02]}  Nxd5 {[%clk 0:03:00]} 5. Bd2 {[%clk 0:03:03]}  Nb6 {[%clk 0:02:56]} 6. Nf3 {[%clk 0:03:03]}  Bg7 {[%clk 0:02:56]} 7. Qc1 {[%clk 0:03:04]}  O-O {[%clk 0:02:52]} 8. Bh6 {[%clk 0:03:04]}  Nd5 {[%clk 0:02:47]} 9. h4 {[%clk 0:02:54]}  Nxc3 {[%clk 0:02:40]} 10. bxc3 {[%clk 0:02:55]}  Bg4 {[%clk 0:02:37]} 11. h5 {[%clk 0:02:38]}  Qd5 {[%clk 0:01:54]} 12. hxg6 {[%clk 0:02:21]}  Bh5 {[%clk 0:01:21]} 13. gxh7+ {[%clk 0:00:48]}  Kh8 {[%clk 0:01:19]} 14. Bxg7+ {[%clk 0:00:43]}  Kxg7 {[%clk 0:01:19]} 15. Ne5 {[%clk 0:00:43]}  Nc6 {[%clk 0:00:26]} 16. Rxh5 {[%clk 0:00:34]}  Nxe5 {[%clk 0:00:25]} 17. h8=Q+ {[%clk 0:00:08]}  Rxh8 {[%clk 0:00:22]} 18. Qg5+ {[%clk 0:00:08]}  Ng6 {[%clk 0:00:18]} 19. Qxd5 {[%clk 0:00:08]}  Rxh5 {[%clk 0:00:15]} 20. Qxh5 {[%clk 0:00:09]}  Rh8 {[%clk 0:00:15]} 21. Qc5 {[%clk 0:00:07]}  c6 {[%clk 0:00:11]} 22. Qxa7 {[%clk 0:00:07]} 1-0


[Site "https://www.chess.com"]

[Event "Titled Tuesday Blitz May 24 Early 2022"]
[White "Hirneise, Jens"]
[Black "Sovetbekova, Nurai"]
[WhiteFideId "24614734"]
[BlackFideId "13801910"]
[WhiteElo "2359"]
[BlackElo "1660"]
[Result "1-0"]
[Round "08"]
[TimeControl "180+1"]
[Date "2022.05.25"]
[WhiteClock "0:01:40"]
[BlackClock "0:00:15"]

1. d4 {[%clk 0:03:00]}  Nf6 {[%clk 0:02:59]} 2. Nf3 {[%clk 0:02:57]}  g6 {[%clk 0:02:59]} 3. Nbd2 {[%clk 0:02:56]}  d5 {[%clk 0:02:58]} 4. e3 {[%clk 0:02:52]}  Bg7 {[%clk 0:02:58]} 5. c4 {[%clk 0:02:52]}  O-O {[%clk 0:02:56]} 6. cxd5 {[%clk 0:02:51]}  Nxd5 {[%clk 0:02:55]} 7. Bc4 {[%clk 0:02:48]}  c5 {[%clk 0:02:54]} 8. dxc5 {[%clk 0:02:45]}  Nc6 {[%clk 0:02:48]} 9. O-O {[%clk 0:02:42]}  Na5 {[%clk 0:02:36]} 10. Be2 {[%clk 0:02:36]}  Qc7 {[%clk 0:02:29]} 11. Nb3 {[%clk 0:02:27]}  Nxb3 {[%clk 0:02:27]} 12. Qxb3 {[%clk 0:02:28]}  Qxc5 {[%clk 0:02:22]} 13. Bd2 {[%clk 0:02:24]}  Be6 {[%clk 0:02:00]} 14. Rac1 {[%clk 0:02:23]}  Qd6 {[%clk 0:01:47]} 15. Bc4 {[%clk 0:02:21]}  b5 {[%clk 0:01:39]} 16. Qxb5 {[%clk 0:02:16]}  Rab8 {[%clk 0:01:31]} 17. Qa5 {[%clk 0:02:15]}  Rxb2 {[%clk 0:01:27]} 18. Rfd1 {[%clk 0:02:15]}  Rc8 {[%clk 0:01:15]} 19. Bxd5 {[%clk 0:02:08]}  Rxc1 {[%clk 0:01:09]} 20. Bxc1 {[%clk 0:02:05]}  Rb1 {[%clk 0:00:51]} 21. e4 {[%clk 0:01:55]}  Bb2 {[%clk 0:00:32]} 22. Qe1 {[%clk 0:01:49]}  Bg4 {[%clk 0:00:15]} 23. Bxb2 {[%clk 0:01:42]}  Rxb2 {[%clk 0:00:15]} 24. Bxf7+ {[%clk 0:01:41]}  Kxf7 {[%clk 0:00:15]} 25. Rxd6 {[%clk 0:01:40]} 1-0


[Site "https://www.chess.com"]

[Event "Titled Tuesday Blitz May 24 Early 2022"]
[White "Horak, Martin"]
[Black "Silvestre, Christian"]
[WhiteFideId "367095"]
[BlackFideId "30956269"]
[WhiteElo "1997"]
[BlackElo "2285"]
[Result "1-0"]
[Round "08"]
[TimeControl "180+1"]
[Date "2022.05.25"]
[WhiteClock "0:00:56"]
[BlackClock "0:01:02"]

1. d4 {[%clk 0:03:00]}  Nf6 {[%clk 0:02:58]} 2. Bg5 {[%clk 0:03:01]}  c6 {[%clk 0:02:57]} 3. Bxf6 {[%clk 0:03:00]}  gxf6 {[%clk 0:02:55]} 4. c4 {[%clk 0:02:53]}  e6 {[%clk 0:02:54]} 5. Nc3 {[%clk 0:02:50]}  d6 {[%clk 0:02:54]} 6. e4 {[%clk 0:02:45]}  h5 {[%clk 0:02:51]} 7. h4 {[%clk 0:02:41]}  Qb6 {[%clk 0:02:49]} 8. Rb1 {[%clk 0:02:30]}  c5 {[%clk 0:02:47]} 9. d5 {[%clk 0:02:27]}  e5 {[%clk 0:02:44]} 10. Be2 {[%clk 0:02:21]}  Qb4 {[%clk 0:02:40]} 11. a3 {[%clk 0:02:13]}  Qa5 {[%clk 0:02:36]} 12. Bxh5 {[%clk 0:02:10]}  Nd7 {[%clk 0:02:33]} 13. Bg4 {[%clk 0:02:05]}  Nb6 {[%clk 0:02:30]} 14. Bxc8 {[%clk 0:01:51]}  Nxc8 {[%clk 0:02:30]} 15. Ne2 {[%clk 0:01:45]}  Nb6 {[%clk 0:02:29]} 16. Qd3 {[%clk 0:01:41]}  O-O-O {[%clk 0:02:21]} 17. Ng3 {[%clk 0:01:38]}  Rg8 {[%clk 0:02:09]} 18. Kf1 {[%clk 0:01:36]}  Qa6 {[%clk 0:02:05]} 19. Nb5 {[%clk 0:01:34]}  Qa4 {[%clk 0:01:51]} 20. b3 {[%clk 0:01:32]}  Qa6 {[%clk 0:01:48]} 21. Nf5 {[%clk 0:01:28]}  Kb8 {[%clk 0:01:47]} 22. h5 {[%clk 0:01:24]}  Nc8 {[%clk 0:01:46]} 23. b4 {[%clk 0:01:14]}  Qb6 {[%clk 0:01:41]} 24. g3 {[%clk 0:01:08]}  Rd7 {[%clk 0:01:27]} 25. Kg2 {[%clk 0:01:08]}  a6 {[%clk 0:01:26]} 26. Nc3 {[%clk 0:01:08]}  Rc7 {[%clk 0:01:26]} 27. Rb2 {[%clk 0:01:02]}  Ne7 {[%clk 0:01:19]} 28. Na4 {[%clk 0:00:58]}  Qa7 {[%clk 0:01:10]} 29. Nxd6 {[%clk 0:00:58]}  Nxd5 {[%clk 0:01:02]} 30. Qxd5 {[%clk 0:00:56]} 1-0


[Site "https://www.chess.com"]

[Event "Titled Tuesday Blitz May 24 Early 2022"]
[White "Hua, Lefong"]
[Black "Derraugh, Geordie"]
[WhiteFideId "2602253"]
[BlackFideId "2603950"]
[WhiteElo "2624"]
[BlackElo "2116"]
[Result "1-0"]
[Round "08"]
[TimeControl "180+1"]
[Date "2022.05.25"]
[WhiteClock "0:01:11"]
[BlackClock "0:00:03"]

1. d4 {[%clk 0:03:00]}  Nf6 {[%clk 0:02:59]} 2. c4 {[%clk 0:03:01]}  e5 {[%clk 0:02:59]} 3. dxe5 {[%clk 0:03:00]}  Ng4 {[%clk 0:02:59]} 4. Bf4 {[%clk 0:03:01]}  Nc6 {[%clk 0:02:59]} 5. Nf3 {[%clk 0:03:01]}  Bb4+ {[%clk 0:02:59]} 6. Nbd2 {[%clk 0:03:01]}  Qe7 {[%clk 0:02:59]} 7. e3 {[%clk 0:03:01]}  Ngxe5 {[%clk 0:02:59]} 8. Nxe5 {[%clk 0:03:02]}  Nxe5 {[%clk 0:02:59]} 9. Be2 {[%clk 0:03:02]}  Bxd2+ {[%clk 0:02:59]} 10. Qxd2 {[%clk 0:03:02]}  d6 {[%clk 0:02:59]} 11. O-O {[%clk 0:03:02]}  b6 {[%clk 0:02:58]} 12. b4 {[%clk 0:03:02]}  O-O {[%clk 0:02:43]} 13. Qc3 {[%clk 0:03:00]}  c5 {[%clk 0:02:40]} 14. a3 {[%clk 0:02:55]}  Bb7 {[%clk 0:02:31]} 15. Rfd1 {[%clk 0:02:50]}  Rad8 {[%clk 0:02:29]} 16. Rac1 {[%clk 0:02:46]}  Ng6 {[%clk 0:02:26]} 17. Bg3 {[%clk 0:02:43]}  f5 {[%clk 0:02:27]} 18. Bf1 {[%clk 0:02:35]}  f4 {[%clk 0:02:20]} 19. exf4 {[%clk 0:02:34]}  Nxf4 {[%clk 0:02:13]} 20. Re1 {[%clk 0:02:29]}  Qg5 {[%clk 0:02:11]} 21. Rcd1 {[%clk 0:02:21]}  h5 {[%clk 0:02:07]} 22. h4 {[%clk 0:02:11]}  Qg4 {[%clk 0:01:32]} 23. Rd2 {[%clk 0:02:01]}  Rf6 {[%clk 0:01:22]} 24. Qe3 {[%clk 0:01:48]}  Rdf8 {[%clk 0:01:05]} 25. Red1 {[%clk 0:01:42]}  Ng6 {[%clk 0:00:39]} 26. Rxd6 {[%clk 0:01:37]}  Nxh4 {[%clk 0:00:34]} 27. Rxf6 {[%clk 0:01:35]}  gxf6 {[%clk 0:00:12]} 28. Be2 {[%clk 0:01:31]}  Qg5 {[%clk 0:00:07]} 29. Qe7 {[%clk 0:01:20]}  Rf7 {[%clk 0:00:05]} 30. Rd8+ {[%clk 0:01:13]}  Kg7 {[%clk 0:00:05]} 31. Qe8 {[%clk 0:01:13]}  Ng6 {[%clk 0:00:03]} 32. Qg8+ {[%clk 0:01:11]} 1-0


[Site "https://www.chess.com"]

[Event "Titled Tuesday Blitz May 24 Early 2022"]
[White "Ibrahimli, Murad"]
[Black "Karolczuk, Iwo"]
[WhiteFideId "13410229"]
[BlackFideId "21816972"]
[WhiteElo "2109"]
[BlackElo "2258"]
[Result "1-0"]
[Round "08"]
[TimeControl "180+1"]
[Date "2022.05.24"]
[WhiteClock "0:00:49"]
[BlackClock "0:00:02"]

1. e4 {[%clk 0:03:00]}  c5 {[%clk 0:02:59]} 2. Nf3 {[%clk 0:03:00]}  d6 {[%clk 0:02:58]} 3. d4 {[%clk 0:03:00]}  cxd4 {[%clk 0:02:59]} 4. Nxd4 {[%clk 0:03:01]}  Nf6 {[%clk 0:02:59]} 5. Nc3 {[%clk 0:03:02]}  a6 {[%clk 0:02:59]} 6. Be3 {[%clk 0:03:01]}  e5 {[%clk 0:02:59]} 7. Nb3 {[%clk 0:03:00]}  Be6 {[%clk 0:02:59]} 8. Qd2 {[%clk 0:02:57]}  Nbd7 {[%clk 0:02:57]} 9. f3 {[%clk 0:02:54]}  b5 {[%clk 0:02:56]} 10. O-O-O {[%clk 0:02:53]}  Be7 {[%clk 0:02:56]} 11. g4 {[%clk 0:02:53]}  O-O {[%clk 0:02:56]} 12. g5 {[%clk 0:02:53]}  Nh5 {[%clk 0:02:56]} 13. Rg1 {[%clk 0:02:53]}  Nb6 {[%clk 0:02:50]} 14. Kb1 {[%clk 0:02:41]}  Nc4 {[%clk 0:02:45]} 15. Bxc4 {[%clk 0:02:40]}  bxc4 {[%clk 0:02:46]} 16. Nc1 {[%clk 0:02:37]}  Rb8 {[%clk 0:02:40]} 17. N1e2 {[%clk 0:02:37]}  Rb7 {[%clk 0:02:19]} 18. Ka1 {[%clk 0:02:36]}  Qd7 {[%clk 0:02:03]} 19. Nd5 {[%clk 0:02:29]}  Rfb8 {[%clk 0:02:00]} 20. Nxe7+ {[%clk 0:02:26]}  Qxe7 {[%clk 0:02:01]} 21. Rb1 {[%clk 0:02:26]}  Rd7 {[%clk 0:01:09]} 22. Nc3 {[%clk 0:02:24]}  Qd8 {[%clk 0:01:08]} 23. Rgd1 {[%clk 0:02:17]}  Qa5 {[%clk 0:01:05]} 24. Nd5 {[%clk 0:02:01]}  Qa4 {[%clk 0:01:00]} 25. b3 {[%clk 0:01:53]}  cxb3 {[%clk 0:00:56]} 26. cxb3 {[%clk 0:01:54]}  Qb5 {[%clk 0:00:51]} 27. Nc3 {[%clk 0:01:49]}  Qb7 {[%clk 0:00:49]} 28. Rbc1 {[%clk 0:01:47]}  a5 {[%clk 0:00:44]} 29. Na4 {[%clk 0:01:44]}  Qa6 {[%clk 0:00:30]} 30. Qd3 {[%clk 0:01:40]}  Qb7 {[%clk 0:00:23]} 31. Qc3 {[%clk 0:01:34]}  Rdd8 {[%clk 0:00:14]} 32. Qxa5 {[%clk 0:01:24]}  Nf4 {[%clk 0:00:14]} 33. Bxf4 {[%clk 0:01:19]}  exf4 {[%clk 0:00:15]} 34. Nc5 {[%clk 0:01:19]}  Qe7 {[%clk 0:00:11]} 35. Nxe6 {[%clk 0:01:20]}  Qxe6 {[%clk 0:00:12]} 36. Qd5 {[%clk 0:01:19]}  Qe7 {[%clk 0:00:12]} 37. Rc6 {[%clk 0:01:15]}  Qa7 {[%clk 0:00:11]} 38. Rxd6 {[%clk 0:01:11]}  Rf8 {[%clk 0:00:10]} 39. g6 {[%clk 0:01:04]}  hxg6 {[%clk 0:00:10]} 40. Rxg6 {[%clk 0:01:04]}  Rbd8 {[%clk 0:00:07]} 41. Rd6 {[%clk 0:01:03]}  Rxd6 {[%clk 0:00:07]} 42. Qxd6 {[%clk 0:01:04]}  Qe3 {[%clk 0:00:07]} 43. Qd3 {[%clk 0:01:03]}  Qf2 {[%clk 0:00:07]} 44. h3 {[%clk 0:00:59]}  Rc8 {[%clk 0:00:06]} 45. Kb1 {[%clk 0:00:57]}  Ra8 {[%clk 0:00:06]} 46. Rd2 {[%clk 0:00:57]}  Qe1+ {[%clk 0:00:06]} 47. Kb2 {[%clk 0:00:57]}  Rc8 {[%clk 0:00:06]} 48. Rc2 {[%clk 0:00:56]}  Ra8 {[%clk 0:00:06]} 49. a4 {[%clk 0:00:55]}  Qg1 {[%clk 0:00:06]} 50. Qd5 {[%clk 0:00:53]}  Rb8 {[%clk 0:00:05]} 51. Qe5 {[%clk 0:00:51]}  Qb6 {[%clk 0:00:05]} 52. Qc3 {[%clk 0:00:50]}  g5 {[%clk 0:00:04]} 53. Rg2 {[%clk 0:00:48]}  f6 {[%clk 0:00:03]} 54. h4 {[%clk 0:00:48]}  Kf7 {[%clk 0:00:02]} 55. hxg5 {[%clk 0:00:48]}  fxg5 {[%clk 0:00:01]} 56. Rxg5 {[%clk 0:00:49]}  Qf2+ {[%clk 0:00:02]} 57. Ka3 {[%clk 0:00:49]} 1-0


[Site "https://www.chess.com"]